Cogmind - Beta 14 @@@ ROGUE MODE // 2025.03.16 @ 17:03:56 Player: potator Result: Self-destructed Performance ------------- Evolutions (1) 500 Regions Visited (3) 600 Robots Destroyed (45) 225 Value Destroyed (1098) 1098 Prototype IDs (3) 60 Alien Tech Used (0) 0 Bonus (50) 50 TOTAL SCORE: 2533 Bonus ------- Follower Combat Kills 50 Cogmind --------- Core Integrity 153/400 Matter 210/300 Energy 100/100 System Corruption 0% Temperature Cool (0) Movement Core (100) Ox1 Location -9/Materials Parts ------- > --- POWER (1) -------- (None) > --- PROPULSION (2) --- (None) > --- UTILITY (4) ------ Small Storage Unit Structural Scanner Improved Targeting Computer Hacking Suite > --- WEAPON (2) ------- (None) > --- INVENTORY (8) ---- Improved Ion Engine Heat Sink Improved Datajack Makeshift Spear Peak State ------------ > --- POWER ------------ Heavy Ion Engine > --- PROPULSION ------- Improved Aluminum Leg Carbon-fiber Leg > --- UTILITY ---------- Small Storage Unit Structural Scanner Improved Targeting Computer Hacking Suite > --- WEAPON ----------- Heavy Assault Rifle Rocket Launcher > --- INVENTORY -------- Improved Ion Engine Carbon-fiber Leg Heat Sink Improved Medium Laser Light Assault Rifle Improved Datajack Makeshift Spear [Rating: 20] Favorites ----------- Power Ion Engine Engine Ion Engine Propulsion Aluminum Leg Leg Aluminum Leg Utility Small Storage Unit Device Sensor Array Storage Small Storage Unit Processor Improved Targeting Computer Hackware Hacking Suite Weapon Light Assault Rifle Energy Gun Small Laser Ballistic Gun Light Assault Rifle Launcher Grenade Launcher Build | -11 -10 -10 -9 ------- Run | Yrd Mat Min Mat Slots Evolved 2 | . . . 2 Power . | . . . . Propulsion . | . . . . Utility 2 | . . . 2 Weapon . | . . . . Parts Attached 45 | 6 22 . 17 Power 4 | 1 2 . 1 Engine 4 | 1 2 . 1 Core . | . . . . Reactor . | . . . . Propulsion 12 | 2 7 . 3 Treads . | . . . . Leg 12 | 2 7 . 3 Wheel . | . . . . Hover . | . . . . Flight . | . . . . Utility 8 | 1 3 . 4 Device 4 | . 3 . 1 Storage 1 | 1 . . . Processor 2 | . . . 2 Hackware 1 | . . . 1 Protection . | . . . . Artifact . | . . . . Weapon 21 | 2 10 . 9 Energy Gun 3 | . 2 . 1 Energy Cannon . | . . . . Ballistic Gun 13 | 2 6 . 5 Ballistic Cannon . | . . . . Launcher 5 | . 2 . 3 Special Weapon . | . . . . Impact Weapon . | . . . . Slashing Weapon . | . . . . Piercing Weapon . | . . . . Special Melee Weapon . | . . . . Unidentified Prototypes 1 | . . . 1 Parts Lost 10 | . 3 . 7 Power 1 | . . . 1 Propulsion 2 | . . . 2 Utility 1 | . 1 . . Weapon 6 | . 2 . 4 Highest Loss Streak 7 | . 1 . 7 To Critical Strikes . | . . . . Average Slot Usage (%) 98 | . 97 100 96 Engine 13 | . 13 14 10 Leg 26 | . 28 28 20 Device 13 | . 12 14 13 Storage 13 | . 14 14 11 Processor 1 | . . . 7 Hackware 2 | . . . 11 Energy Gun 2 | . 4 . . Ballistic Gun 21 | . 19 28 20 Launcher 2 | . 4 . . Peak Build Rating 20 | 6 8 8 20 Average Rating 8 | 3 7 7 15 On Entrance 5 | . 6 8 8 Naked Turns . | . . . . Heaviest Build 18 | 14 15 13 18 Greatest Support 28 | 20 20 20 28 Greatest Overweight (x) 1 | . 1 . 1 Average Overweight (x) . | . . . . Largest Inventory Capacity 8 | 8 8 8 8 Average Capacity 7 | 6 8 8 8 Most Carried 8 | 4 8 8 8 Average Carried 5 | 1 4 7 6 Final Capacity 8 | 8 8 8 8 Final Carried 8 | . 8 8 4 Class Distribution -------------------- 84% | Mutant 15% | Scavenger-Mutant Dominant Class ---------------- Mutant | -10/Materials Mutant | -10/Mines Mutant | -9/Materials Resources | -11 -10 -10 -9 ----------- Run | Yrd Mat Min Mat Matter Collected 1040 | 239 561 53 187 Remotely . | . . . . Salvage Created 1128 | . 662 37 429 Parts 105 | . 68 6 31 Haulers Intercepted . | . . . . Recyclers Shooed . | . . . . Parts Field Recycled . | . . . . Retrieved Matter . | . . . . Parts Self-Destructed . | . . . . Prevented . | . . . . Kills | -11 -10 -10 -9 ------- Run | Yrd Mat Min Mat Combat Hostiles Destroyed 32 | . 20 3 9 Guns 25 | . 17 3 5 AOE 7 | . 3 . 4 Classes Destroyed 9 | . 5 . 4 Worker 1 | . . . 1 Builder 1 | . . . 1 Recycler 1 | . 1 . . Mechanic 1 | . . . 1 Operator 3 | . 3 . . Watcher 6 | . 3 . 3 Swarmer 12 | . 9 3 . Grunt 17 | . 11 . 6 Sentry 3 | . . . 3 Best Kill Streak 6 | . 5 3 6 Combat Bots Only 3 | . 3 3 3 Max Kills in Single Turn 2 | . 2 1 2 Gunslinging . | . . . . Exploded 2 | . 2 . 1 Melee . | . . . . Uniques/NPCs Destroyed . | . . . . Combat | -11 -10 -10 -9 -------- Run | Yrd Mat Min Mat Hostile Shots Fired 224 | . 107 8 109 Missed 76 | . 42 2 32 Damage Taken 1787 | . 675 52 1060 Core 370 | . 108 15 247 Absorbed by Shields . | . . . . Regen/Repaired (Parts) 98 | . 98 . . Core Remaining (%) 75 | 100 . 50 . Volleys Fired 123 | . 73 6 44 Largest 2 | . 2 2 2 Hottest 89 | . 70 40 89 Shots Fired 224 | . 143 12 69 Gun 218 | . 141 12 65 Cannon . | . . . . Launcher 6 | . 2 . 4 Special . | . . . . Kinetic 208 | . 136 12 60 Thermal 10 | . 5 . 5 Explosive 6 | . 2 . 4 Electromagnetic . | . . . . Robot Hit Streak 12 | . 12 5 8 Robot Miss Streak 4 | . 4 2 3 Penetration Max . | . . . . Secondary Targets 2 | . 2 . . Max Gunslinging Chain 1 | . 1 . . Shots Hit Robots 136 | . 86 8 42 Core Hits 71 | . 40 4 27 Critical Kills 2 | . . . 2 Critical Parts Destroyed 1 | . 1 . . Critical Strikes 3 | . 1 . 2 Destroy 3 | . 1 . 2 Melee Attacks . | . . . . Impact . | . . . . Slashing . | . . . . Piercing . | . . . . Sneak Attacks . | . . . . Combat Hostiles . | . . . . Follow-up Attacks . | . . . . Damage Inflicted 2346 | . 1232 67 1047 Guns 1579 | . 1038 67 474 Cannons . | . . . . Explosions 767 | . 194 . 573 Melee . | . . . . Ramming . | . . . . Kinetic 1459 | . 1002 67 390 Thermal 120 | . 36 . 84 Explosive 767 | . 194 . 573 Electromagnetic . | . . . . Impact . | . . . . Slashing . | . . . . Piercing . | . . . . Highest Corruption . | . . . . Average Corruption . | . . . . Corruption Purged . | . . . . Corruption Blocked . | . . . . Overload Shots . | . . . . Overflow Damage . | . . . . Projectiles . | . . . . Explosions . | . . . . Melee . | . . . . Knockbacks . | . . . . Impact . | . . . . Kinetic . | . . . . Secondary . | . . . . Self-Inflicted Damage . | . . . . Shots . | . . . . Rammed . | . . . . Targets Rammed . | . . . . Kicked . | . . . . Crushed . | . . . . Highest Temperature 133 | . 58 . 133 Average Temperature 29 | . 17 . 39 Received Heat Transfer 801 | . 273 . 528 Siege Activations . | . . . . Robots Corrupted . | . . . . Combat Hostiles . | . . . . Parts Fried . | . . . . Impact Corruptions . | . . . . Robots Melted . | . . . . Combat Hostiles . | . . . . Parts Melted . | . . . . Heat Transferred 260 | . 75 . 185 Parts Sabotaged . | . . . . Parts Stolen . | . . . . Parts Stripped . | . . . . Power Chain Reactions . | . . . . Alert | -11 -10 -10 -9 ------- Run | Yrd Mat Min Mat Peak Influence 333 | . 312 143 333 Initial 65 | . . 65 . Average 137 | . 169 55 169 Maximum Alert Level 1 | . 1 . 1 Low Security (%) 71 | 100 68 100 43 Level 1 28 | . 31 . 56 Level 2 . | . . . . Level 3 . | . . . . Level 4 . | . . . . Level 5 . | . . . . High Security . | . . . . Max Security . | . . . . Squads Dispatched 8 | . 5 . 3 Investigation 3 | . 2 . 1 Extermination . | . . . . Reinforcement 5 | . 3 . 2 Assault . | . . . . Garrison . | . . . . Intercept . | . . . . Searches Triggered . | . . . . Construction Impeded 1 | . . . 1 Haulers Reinforced . | . . . . Active Scanning Responses . | . . . . Cargo Convoy Interrupts . | . . . . Stealth | -11 -10 -10 -9 --------- Run | Yrd Mat Min Mat Distress Signals 2 | . 1 . 1 Communications Jammed . | . . . . Distress Signals . | . . . . Times Spotted 51 | . 30 3 18 Peak Tracking Total 7 | . 4 2 7 Tactical Retreats 1 | . . . 1 Traps | -11 -10 -10 -9 ------- Run | Yrd Mat Min Mat Traps Triggered 2 | . 2 . . Indirectly . | . . . . Trap Hack Attempts . | . . . . Triggered . | . . . . Disarmed . | . . . . Reprogrammed . | . . . . Reused . | . . . . Traps Extracted . | . . . . Installed . | . . . . Triggered . | . . . . Machines | -11 -10 -10 -9 ---------- Run | Yrd Mat Min Mat Machines Disabled 7 | . 1 . 6 Max in Single Turn 2 | . 1 . 2 Machines Repaired . | . . . . Machines Dismantled . | . . . . Machines Sabotaged . | . . . . Overloaded Fab Kills . | . . . . Hacking | -11 -10 -10 -9 --------- Run | Yrd Mat Min Mat Machines Accessed 8 | . 5 . 3 Terminals 6 | . 4 . 2 Fabricators . | . . . . Repair Stations 1 | . 1 . . Recycling Units . | . . . . Scanalyzers 1 | . . . 1 Garrison Access . | . . . . Total Hacks 36 | . 21 . 15 Successful 23 | . 13 . 10 Failed 13 | . 8 . 5 Catastrophic 1 | . 1 . . Database Lockouts . | . . . . Manual . | . . . . Terminals 25 | . 15 . 10 Fabricators . | . . . . Repair Stations 6 | . 6 . . Recycling Units . | . . . . Scanalyzers 5 | . . . 5 Garrison Access . | . . . . Terminal Hacks 15 | . 9 . 6 Record 2 | . 1 . 1 Robot Analysis 1 | . . . 1 Emergency Access Points 1 | . . . 1 Alert Level 2 | . 1 . 1 Locate Traps 3 | . 3 . . Dispatch Records 1 | . . . 1 Surveillance Status 1 | . . . 1 Investigation Status 1 | . 1 . . Hauler Manifests 1 | . 1 . . Zone Layout 2 | . 2 . . Fabricator Hacks . | . . . . Repair Station Hacks 4 | . 4 . . Scan Component 2 | . 2 . . Repair 2 | . 2 . . Recycling Unit Hacks . | . . . . Scanalyzer 4 | . . . 4 Insert Component 2 | . . . 2 Analyze 2 | . . . 2 Garrison Access Hacks . | . . . . Unauthorized Hacks . | . . . . Terminals . | . . . . Fabricators . | . . . . Repair Stations . | . . . . Recycling Units . | . . . . Scanalyzers . | . . . . Garrison Access . | . . . . Data Cores Recovered . | . . . . Used . | . . . . Hacking Detections 6 | . 4 . 2 Full Trace Events 3 | . 2 . 1 Feedback Events . | . . . . Feedback Blocked . | . . . . Robot Schematics Acquired . | . . . . Robots Built . | . . . . Authchips . | . . . . Time . | . . . . Total Robot Build Rating . | . . . . Part Schematics Acquired 2 | . . . 2 Parts Built . | . . . . Authchips . | . . . . Time . | . . . . Total Part Build Rating . | . . . . Parts Repaired 2 | . 2 . . Time 52 | . 52 . . Parts Recycled . | . . . . Recycled Matter . | . . . . Retrieved Matter . | . . . . Retrieved Components . | . . . . Parts Scanalyzed 2 | . . . 2 Part Schematics Acquired 2 | . . . 2 Parts Damaged 1 | . . . 1 Bothacking | -11 -10 -10 -9 ------------ Run | Yrd Mat Min Mat Used RIF Installer . | . . . . Robots Hacked . | . . . . Non-combat . | . . . . Combat . | . . . . Robot Hacks Applied . | . . . . Relay Couplers Released . | . . . . Fabnet Peak Effective % . | . . . . Robots Rewired . | . . . . Allies Hacked . | . . . . Hacks Repelled . | . . . . Allies | -11 -10 -10 -9 -------- Run | Yrd Mat Min Mat Total Allies 2 | . . 2 . Largest Group 2 | . . 2 1 Highest-Rated Group 47 | . . 47 31 Highest-Rated Ally 31 | . . 31 31 Total Orders . | . . . . Ally Attacks 25 | . . . 25 Total Damage 316 | . . . 316 Kills 3 | . . . 3 Allies Corrupted . | . . . . Allies Melted . | . . . . Intel | -11 -10 -10 -9 ------- Run | Yrd Mat Min Mat Robot Analysis Total 1 | . . . 1 Derelict Logs Recovered 1 | . . 1 . Drone Launches . | . . . . Drone Recoveries . | . . . . Exploration | -11 -10 -10 -9 ------------- Run | Yrd Mat Min Mat Turns Passed 2680 | 53 1422 670 535 Spaces Moved 1533 | 38 653 527 315 Core 7 | 5 . . 2 Treads . | . . . . Legs 1526 | 33 653 527 313 Wheels . | . . . . Hover . | . . . . Flight . | . . . . Fastest Speed 50 | 50 120 120 100 Average Speed 119 | 110 120 120 120 Slowest Speed 190 | 120 190 120 190 Overloaded Moves . | . . . . Propulsion Burnouts . | . . . . Robots Hopped . | . . . . Cave-ins Triggered . | . . . . Exploration Rate (%) 51 | 3 80 97 27 Regions Visited 3 Branch Regions 1 Pre-discovered Areas . | . . . . Known Exits Taken . | . . . . Unknown Exits Taken 3 | 1 1 1 . Scrap Searched 1 | . . 1 . Spaces Dug . | . . . . Terrain Destroyed 46 | . 19 . 27 Melee . | . . . . Projectile . | . . . . AOE 46 | . 19 . 27 Terrain Rammed . | . . . . Walls Destroyed . | . . . . Machines Disabled . | . . . . Actions | -11 -10 -10 -9 --------- Run | Yrd Mat Min Mat Total 2163 | 49 1148 557 409 Wait 408 | . 376 21 11 Move 1530 | 37 652 526 315 Hop . | . . . . Pick Up 38 | 6 19 2 11 Fast Attach 1 | . 1 . . Attach 16 | 6 6 . 4 Detach . | . . . . Swap 28 | . 15 . 13 Drop 19 | . 6 2 11 Fire 123 | . 73 6 44 Melee . | . . . . Ram . | . . . . Kick . | . . . . Crush . | . . . . Escape Stasis . | . . . . Rewire . | . . . . Trap . | . . . . Miscellaneous . | . . . . Route ------- -11/Scrapyard -10/Materials (discovered 3 exits: *Mat / [*Min x2]) -10/Mines (discovered 3 exits: *Mat x2 / [*Sub]) -9/Materials (discovered 1 exit: [*Mat]) History --------- Turn | Location | Event 11 | -11/Scrapyard | Discovered new exit (range 16) 54 | -11/Scrapyard | Entered Materials 314 | -10/Materials | Build established: Mutant 426 | -10/Materials | Discovered new exit (range 10) 545 | -10/Materials | Discovered new exit (range 6) 909 | -10/Materials | Discovered new exit (range 12) 1074 | -10/Materials | Repaired Ion Engine 1143 | -10/Materials | Repaired Aluminum Leg 1342 | -10/Materials | Build established: Scavenger-Mutant 1476 | -10/Materials | Entered Mines 1688 | -10/Mines | Build established: Mutant 1700 | -10/Mines | A weapon hastily lodged in a ceiling crevice suddenly fell to the ground 2056 | -10/Mines | Discovered new exit (range 6) 2111 | -10/Mines | Received a Rocket Launcher from a helpful Derelict 2128 | -10/Mines | Discovered new exit (range 5) 2134 | -10/Mines | Discovered new exit (range 11) 2146 | -10/Mines | Entered Materials 2146 | -9/Materials | Accompanied by 1 ally 2146 | -9/Materials | Evolved 2 slots: Utility x2 2151 | -9/Materials | Led the pair of lost Derelicts to an unsafe place 2678 | -9/Materials | Discovered new exit (range 16) 2679 | -9/Materials | Core integrity fell below 50% 2681 | -9/Materials | Self-destructed Last Messages --------------- K-01 Serf collects debris. Y-45 Defender destroyed. Rocket Launcher destroyed. K-01 Serf collects debris. Hvy. Ion Engine destroyed. K-01 Serf collects debris. Imp. Medium Laser destroyed. K-01 Serf collects debris. Carbon-fiber Leg destroyed. K-01 Serf collects debris. M-13 Machinist repairs Y-45 Defender. K-01 Serf collects debris. M-13 Machinist repairs Heat Sink. K-01 Serf collects debris. Lgt. Assault Rifle destroyed. R-06 Scavenger collects Aluminum Leg. K-01 Serf collects debris. EXIT=FOUND R-06 Scavenger destroyed. K-01 Serf collects debris. Map ----- +----------------------------------------------------+ | ?????????????????????????????????????????????????? | | ?????????????????????????????????????????????????? | | ?????????????????????????????????????????????????? | | ?????????????????????????????????????????????????? | | ?????????????????????????????????????????????????? | | ????????????????????? ???????????????????????????? | | ???????????????????? #??????????????????????????? | | ????????????????????#/#??????????????????????????? | | ????????????????????# #??????????????????????????? | | ????????????????????? ???????????????????????????? | | ????????????????????? ???????????????????????????? | | ???????????????????## ##?????????????????????????? | | ???????????????????## ##?????????????????????????? | | ???????????????###### ##?????????????????????????? | | ???????????????###### ##?????????????????????????? | | ???????????????## # ##?????????????????????????? | | ?????############ # ##?????????????????????????? | | ?????############ # ##?????????? ##????????????? | | ?????##//!!==#### # ##?????????? ##????????????? | | ?????##//!! #### # ###???????? ##????????????? | | ####### # ## # ##### #### ?????????? | | ####### # g ########/####### ?????????? | | == # ## ## gg ?????????? | | ######## [Y k !k=